Cogmind - Beta 12 @@@ ROGUE MODE // 2023.04.18 @ 12:50:22 Player: Mr Goldstein Result: Destroyed by G-47 Trooper with Particle Gun Performance ------------- Evolutions (1) 500 Regions Visited (6) 1200 Robots Destroyed (0) 0 Value Destroyed (0) 0 Prototype IDs (37) 740 Alien Tech Used (0) 0 Bonus (628) 628 TOTAL SCORE: 3068 Bonus ------- Pacifist 200 Follower Combat Kills 128 Aligned with FarCom 300 Cogmind --------- Core Integrity 0/400 Matter 226/300 Energy 98/100 System Corruption 4% Temperature Cool (9) Movement Core (50) Location -8/Mines Parts ------- > --- POWER (1) -------- (None) > --- PROPULSION (2) --- (None) > --- UTILITY (4) ------ (None) > --- WEAPON (2) ------- (None) > --- INVENTORY (5) ---- Skeleton Box Remote Datajack Peak State ------------ > --- POWER ------------ (None) > --- PROPULSION ------- (None) > --- UTILITY ---------- Skeleton Box > --- WEAPON ----------- Remote Datajack > --- INVENTORY -------- (None) [Rating: 10] Favorites ----------- Power None Propulsion None Utility Skeleton Box Device Skeleton Box Weapon Remote Datajack Special Weapon Remote Datajack Build | -11 -10 -10 -9 -9 -9 -8 ------- Run | Jun Mat Min Mat Min Exi Min Slots Evolved 2 | . . . 2 . . . Power . | . . . . . . . Propulsion . | . . . . . . . Utility 2 | . . . 2 . . . Weapon . | . . . . . . . Parts Attached 2 | . . . . . 2 . Power . | . . . . . . . Engine . | . . . . . . . Core . | . . . . . . . Reactor . | . . . . . . . Propulsion . | . . . . . . . Treads . | . . . . . . . Leg . | . . . . . . . Wheel . | . . . . . . . Hover . | . . . . . . . Flight . | . . . . . . . Utility 1 | . . . . . 1 . Device 1 | . . . . . 1 . Storage . | . . . . . . . Processor . | . . . . . . . Hackware . | . . . . . . . Protection . | . . . . . . . Artifact . | . . . . . . . Weapon 1 | . . . . . 1 . Energy Gun . | . . . . . . . Energy Cannon . | . . . . . . . Ballistic Gun . | . . . . . . . Ballistic Cannon . | . . . . . . . Launcher . | . . . . . . . Special Weapon 1 | . . . . . 1 . Impact Weapon . | . . . . . . . Slashing Weapon . | . . . . . . . Piercing Weapon . | . . . . . . . Special Melee Weapon . | . . . . . . . Unidentified Prototypes . | . . . . . . . Parts Lost . | . . . . . . . Power . | . . . . . . . Propulsion . | . . . . . . . Utility . | . . . . . . . Weapon . | . . . . . . . Highest Loss Streak . | . . . . . . . To Critical Strikes . | . . . . . . . Average Slot Usage (%) 2 | . . . . . 8 . Special Weapon 2 | . . . . . 8 . Naked Turns 549 | . 31 22 39 359 59 39 Heaviest Build 3 | . . . . . 3 . Greatest Support 3 | 3 3 3 3 3 3 3 Greatest Overweight (x) . | . . . . . . . Average Overweight (x) . | . . . . . . . Largest Inventory Capacity 5 | 5 5 5 5 5 5 5 Average Capacity 5 | 5 5 5 5 5 5 5 Most Carried 2 | . . . . 1 2 2 Average Carried . | . . . . . . 2 Final Capacity 5 | 5 5 5 5 5 5 5 Final Carried 2 | . . . . 1 2 2 Class Distribution -------------------- 100% | Mutant Dominant Class ---------------- Mutant | -10/Materials Mutant | -10/Mines Mutant | -9/Materials Mutant | -9/Mines Mutant | -9/Exiles Mutant | -8/Mines Resources | -11 -10 -10 -9 -9 -9 -8 ----------- Run | Jun Mat Min Mat Min Exi Min Matter Collected 263 | 63 . . . . 200 . Remotely . | . . . . . . . Salvage Created . | . . . . . . . Parts . | . . . . . . . Haulers Intercepted . | . . . . . . . Recyclers Shooed . | . . . . . . . Parts Field Recycled . | . . . . . . . Retrieved Matter . | . . . . . . . Parts Self-Destructed . | . . . . . . . Prevented . | . . . . . . . Kills | -11 -10 -10 -9 -9 -9 -8 ------- Run | Jun Mat Min Mat Min Exi Min Combat Hostiles Destroyed . | . . . . . . . Classes Destroyed . | . . . . . . . Best Kill Streak . | . . . . . . . Combat Bots Only . | . . . . . . . Max Kills in Single Turn . | . . . . . . . Gunslinging . | . . . . . . . Exploded . | . . . . . . . Melee . | . . . . . . . Uniques/NPCs Destroyed . | . . . . . . . Combat | -11 -10 -10 -9 -9 -9 -8 -------- Run | Jun Mat Min Mat Min Exi Min Damage Taken 535 | . . 134 41 240 . 120 Core 535 | . . 134 41 240 . 120 Absorbed by Shields . | . . . . . . . Core Remaining (%) 73 | 100 . 46 . . . . Volleys Fired 29 | . . . . . 29 . Largest 1 | . . . . . 1 . Hottest 5 | . . . . . 5 . Shots Fired 29 | . . . . . 29 . Gun . | . . . . . . . Cannon . | . . . . . . . Launcher . | . . . . . . . Special 29 | . . . . . 29 . Kinetic . | . . . . . . . Thermal . | . . . . . . . Explosive . | . . . . . . . Electromagnetic . | . . . . . . . Robot Hit Streak 6 | . . . . . 6 . Robot Miss Streak 2 | . . . . . 2 . Penetration Max . | . . . . . . . Secondary Targets . | . . . . . . . Shots Hit Robots 18 | . . . . . 18 . Core Hits 2 | . . 1 . 1 . . Critical Kills . | . . . . . . . Critical Parts Destroyed . | . . . . . . . Critical Strikes . | . . . . . . . Melee Attacks . | . . . . . . . Impact . | . . . . . . . Slashing . | . . . . . . . Piercing . | . . . . . . . Sneak Attacks . | . . . . . . . Combat Hostiles . | . . . . . . . Follow-up Attacks . | . . . . . . . Damage Inflicted 81 | . . 19 . 62 . . Guns . | . . . . . . . Cannons . | . . . . . . . Explosions . | . . . . . . . Melee . | . . . . . . . Ramming 81 | . . 19 . 62 . . Kinetic . | . . . . . . . Thermal . | . . . . . . . Explosive . | . . . . . . . Electromagnetic . | . . . . . . . Impact . | . . . . . . . Slashing . | . . . . . . . Piercing . | . . . . . . . Highest Corruption 4 | . . 1 . 4 4 4 Average Corruption 3 | . . 1 . 3 4 4 Corruption Purged . | . . . . . . . Corruption Blocked . | . . . . . . . Effects 15 | . . . . 6 7 2 Message Errors 7 | . . . . 3 4 . Matter Fused 2 | . . . . 1 1 . Heat Flow Errors 3 | . . . . 1 2 . Energy Discharges 1 | . . . . . . 1 Data Loss (minor) 2 | . . . . 1 . 1 Overload Shots . | . . . . . . . Overflow Damage . | . . . . . . . Projectiles . | . . . . . . . Explosions . | . . . . . . . Melee . | . . . . . . . Knockbacks . | . . . . . . . Impact . | . . . . . . . Kinetic . | . . . . . . . Secondary . | . . . . . . . Self-Inflicted Damage 38 | . . 9 . 29 . . Shots . | . . . . . . . Rammed 15 | . . 5 . 10 . . Targets Rammed 15 | . . 5 . 10 . . Kicked . | . . . . . . . Crushed . | . . . . . . . Highest Temperature 249 | . . 2 . 142 249 . Average Temperature 96 | . . 2 . 72 114 . Received Heat Transfer 117 | . . 84 18 6 . 9 Siege Activations . | . . . . . . . Robots Corrupted . | . . . . . . . Combat Hostiles . | . . . . . . . Parts Fried . | . . . . . . . Impact Corruptions . | . . . . . . . Robots Melted . | . . . . . . . Combat Hostiles . | . . . . . . . Parts Melted . | . . . . . . . Heat Transferred . | . . . . . . . Parts Sabotaged . | . . . . . . . Parts Stolen . | . . . . . . . Parts Stripped . | . . . . . . . Power Chain Reactions . | . . . . . . . Missiles Intercepted . | . . . . . . . Alert | -11 -10 -10 -9 -9 -9 -8 ------- Run | Jun Mat Min Mat Min Exi Min Peak Influence 283 | . 15 5 46 283 . 30 Initial 17 | . . 5 1 17 . . Average 73 | . 5 5 19 98 . 8 Maximum Alert Level 1 | . . . . 1 . . Low Security (%) 84 | 100 100 100 100 79 . 100 Level 1 15 | . . . . 20 . . Level 2 . | . . . . . . . Level 3 . | . . . . . . . Level 4 . | . . . . . . . Level 5 . | . . . . . . . High Security . | . . . . . . . Max Security . | . . . . . . . Squads Dispatched 1 | . . . 1 . . . Investigation . | . . . . . . . Extermination . | . . . . . . . Reinforcement 1 | . . . 1 . . . Assault . | . . . . . . . Garrison . | . . . . . . . Intercept . | . . . . . . . Searches Triggered . | . . . . . . . Construction Impeded . | . . . . . . . Haulers Reinforced . | . . . . . . . Active Scanning Responses . | . . . . . . . Cargo Convoy Interrupts . | . . . . . . . Stealth | -11 -10 -10 -9 -9 -9 -8 --------- Run | Jun Mat Min Mat Min Exi Min Distress Signals . | . . . . . . . Communications Jammed . | . . . . . . . Distress Signals . | . . . . . . . Times Spotted 30 | . 1 2 4 14 . 9 Peak Tracking Total 7 | . 1 2 4 6 . 7 Tactical Retreats 3 | . . . . 2 . 1 Traps | -11 -10 -10 -9 -9 -9 -8 ------- Run | Jun Mat Min Mat Min Exi Min Traps Triggered 1 | . . . . 1 . . Indirectly . | . . . . . . . Trap Hack Attempts . | . . . . . . . Triggered . | . . . . . . . Disarmed . | . . . . . . . Reprogrammed . | . . . . . . . Reused . | . . . . . . . Traps Extracted . | . . . . . . . Installed . | . . . . . . . Triggered . | . . . . . . . Machines | -11 -10 -10 -9 -9 -9 -8 ---------- Run | Jun Mat Min Mat Min Exi Min Machines Disabled . | . . . . . . . Max in Single Turn . | . . . . . . . Machines Repaired . | . . . . . . . Machines Sabotaged . | . . . . . . . Overloaded Fab Kills . | . . . . . . . Hacking | -11 -10 -10 -9 -9 -9 -8 --------- Run | Jun Mat Min Mat Min Exi Min Machines Accessed 2 | . . . . 1 1 . Terminals . | . . . . . . . Fabricators . | . . . . . . . Repair Stations . | . . . . . . . Recycling Units . | . . . . . . . Scanalyzers . | . . . . . . . Garrison Access . | . . . . . . . Total Hacks 2 | . . . . 1 1 . Successful 2 | . . . . 1 1 . Failed . | . . . . . . . Catastrophic . | . . . . . . . Database Lockouts . | . . . . . . . Manual 1 | . . . . . 1 . Terminals . | . . . . . . . Fabricators . | . . . . . . . Repair Stations . | . . . . . . . Recycling Units . | . . . . . . . Scanalyzers . | . . . . . . . Garrison Access . | . . . . . . . Terminal Hacks 2 | . . . . 1 1 . Open Door 1 | . . . . 1 . . EX-Prototype ID Bank 1 | . . . . . 1 . Fabricator Hacks . | . . . . . . . Repair Station Hacks . | . . . . . . . Recycling Unit Hacks . | . . . . . . . Scanalyzer . | . . . . . . . Garrison Access Hacks . | . . . . . . . Unauthorized Hacks . | . . . . . . . Terminals . | . . . . . . . Fabricators . | . . . . . . . Repair Stations . | . . . . . . . Recycling Units . | . . . . . . . Scanalyzers . | . . . . . . . Garrison Access . | . . . . . . . Data Cores Recovered . | . . . . . . . Used . | . . . . . . . Hacking Detections . | . . . . . . . Full Trace Events . | . . . . . . . Feedback Events . | . . . . . . . Feedback Blocked . | . . . . . . . Robot Schematics Acquired . | . . . . . . . Robots Built . | . . . . . . . Authchips . | . . . . . . . Time . | . . . . . . . Total Robot Build Rating . | . . . . . . . Part Schematics Acquired . | . . . . . . . Parts Built . | . . . . . . . Authchips . | . . . . . . . Time . | . . . . . . . Total Part Build Rating . | . . . . . . . Parts Repaired . | . . . . . . . Time . | . . . . . . . Parts Recycled . | . . . . . . . Recycled Matter . | . . . . . . . Retrieved Matter . | . . . . . . . Retrieved Components . | . . . . . . . Parts Scanalyzed . | . . . . . . . Part Schematics Acquired . | . . . . . . . Parts Damaged . | . . . . . . . Bothacking | -11 -10 -10 -9 -9 -9 -8 ------------ Run | Jun Mat Min Mat Min Exi Min Used RIF Installer . | . . . . . . . Robots Hacked 5 | . . . . . 5 . Non-combat 3 | . . . . . 3 . Combat 2 | . . . . . 2 . Robot Hacks Applied 17 | . . . . . 17 . parse_system 17 | . . . . . 17 . Relay Couplers Released . | . . . . . . . Fabnet Peak Effective % . | . . . . . . . Robots Rewired . | . . . . . . . Allies Hacked . | . . . . . . . Hacks Repelled . | . . . . . . . Allies | -11 -10 -10 -9 -9 -9 -8 -------- Run | Jun Mat Min Mat Min Exi Min Total Allies 5 | . . . . 5 . . Largest Group 5 | . . . . 5 . . Highest-Rated Group 73 | . . . . 73 . . Highest-Rated Ally 31 | . . . . 31 . . Total Orders . | . . . . . . . Ally Attacks 34 | . . . . 34 . . Total Damage 486 | . . . . 486 . . Kills 12 | . . . . 12 . . Allies Corrupted . | . . . . . . . Allies Melted . | . . . . . . . Intel | -11 -10 -10 -9 -9 -9 -8 ------- Run | Jun Mat Min Mat Min Exi Min Robot Analysis Total . | . . . . . . . Derelict Logs Recovered 2 | . . . . 2 . . Drone Launches . | . . . . . . . Drone Recoveries . | . . . . . . . Exploration | -11 -10 -10 -9 -9 -9 -8 ------------- Run | Jun Mat Min Mat Min Exi Min Turns Passed 729 | 9 31 22 39 359 230 39 Spaces Moved 1213 | 18 61 33 78 579 366 78 Core 1213 | 18 61 33 78 579 366 78 Treads . | . . . . . . . Legs . | . . . . . . . Wheels . | . . . . . . . Hover . | . . . . . . . Flight . | . . . . . . . Fastest Speed 50 | 50 50 50 50 50 50 50 Average Speed 50 | 50 50 50 50 50 50 50 Slowest Speed 50 | 50 50 50 50 50 50 50 Overloaded Moves . | . . . . . . . Propulsion Burnouts . | . . . . . . . Robots Hopped . | . . . . . . . Cave-ins Triggered . | . . . . . . . Exploration Rate (%) 35 | 3 22 18 11 96 70 30 Regions Visited 6 Branch Regions 4 Pre-discovered Areas 3 | . . . . 3 . . Known Exits Taken . | . . . . . . . Unknown Exits Taken 6 | 1 1 1 1 1 1 . Scrap Searched 1 | . . . . 1 . . Spaces Dug . | . . . . . . . Terrain Destroyed . | . . . . . . . Melee . | . . . . . . . Projectile . | . . . . . . . AOE . | . . . . . . . Terrain Rammed . | . . . . . . . Walls Destroyed . | . . . . . . . Machines Disabled . | . . . . . . . Actions | -11 -10 -10 -9 -9 -9 -8 --------- Run | Jun Mat Min Mat Min Exi Min Total 1314 | 17 60 37 77 647 398 78 Wait 58 | . . . . 58 . . Move 1207 | 17 60 32 77 578 365 78 Hop . | . . . . . . . Pick Up 1 | . . . . 1 . . Fast Attach 1 | . . . . . 1 . Attach 1 | . . . . . 1 . Detach 2 | . . . . . 2 . Swap . | . . . . . . . Drop . | . . . . . . . Fire 29 | . . . . . 29 . Melee . | . . . . . . . Ram 15 | . . 5 . 10 . . Kick . | . . . . . . . Crush . | . . . . . . . Escape Stasis . | . . . . . . . Rewire . | . . . . . . . Trap . | . . . . . . . Miscellaneous . | . . . . . . . Route ------- -11/Junkyard -10/Materials -10/Mines -9/Materials -9/Mines (discovered 3 exits: [*Mat x2] / *Exi) -9/Exiles -8/Mines History --------- Turn | Location | Event 2 | -11/Junkyard | Met Revision 17 3 | -11/Junkyard | Discovered new exit (range 15) 10 | -11/Junkyard | Entered Materials 33 | -10/Materials | Discovered new exit (range 15) 41 | -10/Materials | Entered Mines 54 | -10/Mines | Discovered new exit (range 15) 58 | -10/Mines | Core integrity fell below 50% 63 | -10/Mines | Entered Materials 63 | -9/Materials | Evolved 2 slots: Utility x2 95 | -9/Materials | Discovered new exit (range 15) 102 | -9/Materials | Entered Mines 113 | -9/Mines | Learned location of Storage (-8) 202 | -9/Mines | Learned location of Zion (-6) 204 | -9/Mines | Met a Derelict who couldn't figure out how to use a Trap Extractor 292 | -9/Mines | Assisted by bots powering up and referring to "LRC-V3" 294 | -9/Mines | Core integrity fell below 50% 305 | -9/Mines | Build established: Mutant 339 | -9/Mines | Discovered new exit (range 5) 351 | -9/Mines | Discovered new exit (range 10) 399 | -9/Mines | Deemed a non-threat by the Exiles lab entrance 399 | -9/Mines | Discovered new exit (range 5) 461 | -9/Mines | Entered Exiles 475 | -9/Exiles | Met 8R-AWN 488 | -9/Exiles | Met EX-HEX 516 | -9/Exiles | Met EX-BIN 545 | -9/Exiles | Aligned with FarCom system 546 | -9/Exiles | Given EX-Vault access code 557 | -9/Exiles | Opened EX-Vault 560 | -9/Exiles | Found Skeleton Box 572 | -9/Exiles | Warned to stay clear of 0b10 Research branches 585 | -9/Exiles | Met EX-DEC 687 | -9/Exiles | Discovered new exit (range 10) 691 | -9/Exiles | Left Exiles lab with Skeleton Box 691 | -9/Exiles | Entered Mines 698 | -8/Mines | Core integrity fell below 20% 730 | -8/Mines | Destroyed by G-47 Trooper with Particle Gun Last Messages --------------- 00593_ Jacked EX-DEC... >>parse_system Reading system data... 00620_ Jacked EX-HEX... >>parse_system Reading system data... 00624_ AL U %ICAUW5TZ0V9WYF5U=ERTEM7 00629_ Jacked 8R-AWN... >>parse_system Reading system data... 00648_ L5FV5DQQ>U|3UED9T MQ9=JUIU5 00675_ Extracted 200 matter. 00676_ System corrupted: Heat flow error (+109). 00687_ EXIT=FOUND LOCATION=UNKNOWN GOAL=ESCAPE 00691_ Receiving FarCom transmissions... 00692_ S-10 Pest destroyed. 00698_ System corrupted: Energy discharge (-39). 00721_ System corrupted: Component data lost. Map ----- +----------------------------------------------------+ | ????????????????????????????????????????? | | ???????????????????????????????########?? | | ???????????????????????????????# # | | ???????????????????????????????# # | | ???????????????????????????????# """ # | | ???????????????????????????????# """ # | | ???????????????????????????????# """ # | | ???????????????????????????##### # | | ???????????????????????????# """ # | | ???????????????????????###?# ### """ # | | ???????????????????????# ### #?# """ # | | ???????????? ?????????## #?# # | | ???????????? ???????## s####?### ###### | | ???????????? ?????### #??????# #????? | | ???????????? ????## s ##?????# #????? | | ????????????# ????# s #?????# #????? | | ????????????# ???# #?????# #????? | | ????????????#gg???# #?????# #????? | | ????????????# b#??# ##?????# #????? | | ???????????## ### ###??????# #????? | | ??????????## ###????????# #####? | | ?????????## ##??????????# #? | | ????????## """ ##k #???????????##### #? | | ???????? """ ## ##??????????????# #? | | ??????? """ ##?????????????# #? | | ????????# """ @ #?????????????# ## | | ????????## t### #?????????????# | | ?????????## ??# ##?????????????#### | | ??????????# ???# ##?????????????????? | | ??????????# ???# #??????????????????? | | ??????????# ????# #??????????????????? | | ??????????# ????# #??????????????????? | | ??????????# ?????# ??????????????????? | | ??????????## ??????###??????????????????? | | ???????????#????????????????????????????? | | ????????????????????????????????????????? | | ????????????????????????????????????????? | | ????????????????????????????????????????? | | ????????????????????????????????????????? | | ????????????????????????????????????????? | | ????????????????????????????????????????? | | ????????????????????????????????????????? | | ????????????????????????????????????????? | | ????????????????????????????????????????? | | ????????????????????????????????????????? | | ????????????????????????????????????????? | | ????????????????????????????????????????? | | ????????????????????????????????????????? | | ????????????????????????????????????????? | | ????????????????????????????????????????? | +----------------------------------------------------+ Best States ------------- Heat Dissipation 28 Energy Generation 5 Energy Capacity 100 Matter Stores 226 Matter Capacity 300 Sight Range 16 Terrain Scan Density 10 Evasion (%) 50 Item Schematics ----------------- None Robot Schematics ------------------ None Fabricated ------------ Nothing Alien Tech Used ----------------- None Achievements -------------- None Challenges ------------ None Game ------ Seed DamperDecoyTorch Manual? 0 Play Time 00:09:41 Cumulative 124.7 hours Start 2023.04.18 @ 12:38:08 End 2023.04.18 @ 12:50:22 Sessions 1 Manual Loads 0 Difficulty Rogue Special Mode None Game No. 358 Rogue 358 Adventurer 0 Explorer 0 Win Type - Total 4 Types 4/0/0/0/0/0/0/0/0 Lore% 60 Gallery% 63 Achievement% 54 Wizard Run 0 Options --------- ASCII 0 Keyboard 0 Movement Numpad Keybinds 0 Fullscreen 1 Font 12/Smallcaps Map View 83x54 Tactical HUD 1 Map Filters NONE Filters NONE Steam 1 RUN: 37183797-5eb7-46d0-a2a6-8acd9a681283